fUST/lending_fUST_20260207
["ID","MTS","AMOUNT","RATE_DAILY","PERIOD"]
[404679758,1770426646951,-22496.95777933,0.00024655,2]
[404679759,1770426646960,-5807.02627556,0.00024659,2]
[404679760,1770426646969,-151.0,0.00024659,7]
[404679761,1770426646979,-151.0,0.00024659,7]
[404679762,1770426646988,-151.966407,0.00024659,7]
[404679763,1770426646997,-500.0,0.00024794,2]
[404679764,1770426647006,-500.0,0.00024794,2]
[404679765,1770426647016,-151.0,0.00024796,7]
[404679766,1770426647026,-152.939481,0.00024796,7]
[404679767,1770426647035,-2801.74,0.00024861,2]
[404679768,1770426647045,-7374.75,0.00024872,10]
[404679769,1770426647054,-250.0,0.00024882,2]
[404679770,1770426647063,-250.0,0.00024882,2]
[404679771,1770426647073,-250.0,0.00024882,2]
[404679772,1770426647082,-250.0,0.00024882,2]
[404679773,1770426647092,-500.0,0.00024882,2]
[404679774,1770426647101,-250.0,0.00024882,2]
[404679775,1770426647111,-500.0,0.00024882,2]
[404679776,1770426647121,-250.0,0.00024882,2]
[404679777,1770426647131,-250.0,0.00024882,2]
[404679778,1770426647140,-500.0,0.00024882,2]
[404679779,1770426647149,-500.0,0.00024882,2]
[404679780,1770426647158,-250.0,0.00024882,2]
[404679781,1770426647167,-500.0,0.00024882,2]
[404679782,1770426647177,-500.0,0.00024882,2]
[404679783,1770426647187,-500.0,0.00024882,2]
[404679784,1770426647196,-250.0,0.00024882,2]
[404679785,1770426647205,-500.0,0.00024882,2]
[404679786,1770426647215,-250.0,0.00024882,2]
[404679787,1770426647225,-500.0,0.00024882,2]
[404679788,1770426647234,-500.0,0.00024882,2]
[404679789,1770426647243,-250.0,0.00024882,2]
[404679790,1770426647253,-250.0,0.00024882,2]
[404679791,1770426647263,-500.0,0.00024882,2]
[404679792,1770426647275,-500.0,0.00024882,2]
[404679793,1770426647285,-250.0,0.00024882,2]
[404679794,1770426647294,-500.0,0.00024882,2]
[404679795,1770426647303,-500.0,0.00024882,2]
[404679796,1770426647314,-250.0,0.00024882,2]
[404679797,1770426647324,-250.0,0.00024882,2]
[404679798,1770426647333,-500.0,0.00024882,2]
[404679799,1770426647343,-500.0,0.00024882,2]
[404679800,1770426647352,-500.0,0.00024882,2]
[404679801,1770426647362,-500.0,0.00024882,2]
[404679802,1770426647371,-500.0,0.00024882,2]
[404679803,1770426647381,-500.0,0.00024882,2]
[404679804,1770426647390,-500.0,0.00024882,2]
[404679805,1770426647400,-500.0,0.00024882,2]
[404679806,1770426647410,-250.0,0.00024882,2]
[404679807,1770426647419,-500.0,0.00024882,2]
[404679808,1770426647429,-500.0,0.00024882,2]
[404679809,1770426647438,-250.0,0.00024882,2]
[404679810,1770426647448,-181.3992874,0.00024882,2]
[404679811,1770426647457,-250.0,0.00024882,2]
[404679812,1770426647466,-250.0,0.00024882,2]
[404679813,1770426647475,-250.0,0.00024882,2]
[404679814,1770426647484,-500.0,0.00024882,2]
[404679815,1770426647493,-250.0,0.00024882,2]
[404679816,1770426647502,-206.92992631,0.00024882,2]
[404679817,1770426647512,-250.0,0.00024882,2]
[404679818,1770426647521,-250.0,0.00024882,2]
[404679819,1770426647530,-250.0,0.00024882,2]
[404679820,1770426647539,-250.0,0.00024882,2]
[404679821,1770426647548,-192.00748304,0.00024882,2]
[404679822,1770426647558,-500.0,0.00024896,2]
[404679823,1770426647567,-258.0,0.00024915,2]
[404679824,1770426647576,-160.0,0.00024952,5]
[404679825,1770426647585,-2970.67432601,0.00024955,2]
[404679826,1770426647594,-739.66666667,0.00024969,2]
[404679827,1770426647603,-741.48751943,0.00024969,2]
[404679828,1770426647615,-500.0,0.00024989,2]
[404679829,1770426647624,-2970.67432601,0.0002499,2]
[404679830,1770426647633,-500.0,0.00024999,2]
[404679831,1770426647642,-26242.26272592,0.00025,2]
[404679832,1770426647652,-155.04,0.00025,7]
[404679833,1770426647660,-916.61,0.000251,2]
[404679834,1770426647670,-160.0,0.0002547,6]
[404679835,1770426647679,-255.97386678,0.0002547,5]
[404679836,1770426647693,-600.0,0.00025499,10]
[404679837,1770426647711,-153.0,0.00026092,3]
[404679838,1770426647723,-152.0,0.00026092,3]
[404679839,1770426647734,-349.0,0.00026092,3]
[404679840,1770426647744,-153.0,0.00026092,3]
[404679841,1770426647756,-152.0,0.00026092,3]
[404679842,1770426647766,-151.0,0.00026092,3]
[404679843,1770426647778,-164.0,0.00026092,3]
[404679844,1770426647790,-171.5985131,0.00026092,3]
[404679845,1770426647800,-152.0,0.00026092,3]
[404679846,1770426647811,-155.07949891,0.00026092,3]
[404679847,1770426647821,-272.10439015,0.00026092,3]
[404679848,1770426647941,-166.0,0.00026092,3]
[404679849,1770426647951,-166.0,0.00026092,3]
[404679850,1770426647961,-166.0,0.00026092,3]
[404679851,1770426647972,-172.0,0.00026092,3]
[404679852,1770426647982,-500.0,0.00026225,7]
[404679853,1770426647993,-482.94105612,0.00026339,2]
[404679854,1770426648005,-153.0,0.00026547,3]
[404679855,1770426648015,-166.0,0.00026547,3]
[404679856,1770426648024,-166.0,0.00026547,3]
[404679857,1770426648034,-166.0,0.00026547,3]
[404679858,1770426648044,-166.0,0.00026547,3]
[404679859,1770426648055,-166.0,0.00026547,3]
[404679860,1770426648069,-500.0,0.00026868,2]
[404679861,1770426648078,-5941.34865202,0.00027021,2]
[404679862,1770426648088,-3096.4332082,0.00027031,2]
[404679863,1770426648099,-61486.28461964,0.00027031,2]
[404679864,1770426652361,500.0,0.00024658,120]
[404679885,1770427810209,179.734037,0.0002755,60]
[404679988,1770427846750,-172.19018075,0.000198,2]
[404679990,1770427846760,-6185.04942863,0.0002,7]
[404679991,1770427846769,-150.0,0.00022824,2]
[404679992,1770427846779,-248.99650363,0.00022824,2]
[404680009,1770427915454,200.0,0.00030137,120]
[404680015,1770428072342,959.0,0.00030136,120]
[404680045,1770428600842,321.0303105,0.00030137,120]
[404680095,1770429031678,-631.87264066,0.0002233,2]
[404680096,1770429031691,-1839.21342901,0.0002233,2]
[404680097,1770429031732,-273.91393033,0.0002233,2]
[404680098,1770429031742,-567.06198345,0.0002233,2]
[404680142,1770429037939,-2313.28582926,0.0002233,2]
[404680144,1770429037953,-5083.65218729,0.0002233,2]
[404680146,1770429037963,-150.0,0.0002236,2]
[404680147,1770429037975,-8905.15727294,0.00022373,2]
[404680149,1770429037986,-7296.9323529,0.00022929,2]
[404680150,1770429037996,-500.0,0.00022999,2]
[404680151,1770429038006,-500.0,0.00022999,2]
[404680153,1770429038016,-500.0,0.00022999,2]
[404680155,1770429038025,-500.0,0.00022999,2]
[404680157,1770429038035,-500.0,0.00022999,2]
[404680159,1770429038044,-500.0,0.00022999,2]
[404680161,1770429038053,-226.86701985,0.00022999,2]
[404680163,1770429038063,-500.0,0.00022999,2]
[404680165,1770429038072,-500.0,0.00022999,2]
[404680167,1770429038082,-500.0,0.00022999,2]
[404680169,1770429038091,-500.0,0.00022999,2]
[404680171,1770429038101,-500.0,0.00022999,2]
[404680172,1770429038111,-500.0,0.00022999,2]
[404680175,1770429038121,-500.0,0.00022999,2]
[404680177,1770429038133,-500.0,0.00022999,2]
[404680179,1770429038142,-500.0,0.00022999,2]
[404680181,1770429038151,-500.0,0.00022999,2]
[404680183,1770429038160,-500.0,0.00022999,2]
[404680185,1770429038170,-216.09755542,0.00022999,2]
[404680186,1770429038179,-500.0,0.00022999,2]
[404680188,1770429038189,-502.90276914,0.00023,2]
[404680190,1770429038199,-385.34037316,0.00023047,2]
[404680193,1770429038208,-359.08892221,0.00023048,2]
[404680694,1770430156602,197.85889808,0.00013273,2]
[404680714,1770430231860,-2077.13104138,0.00017974,2]
[404680717,1770430231870,-300.0,0.00018385,2]
[404680719,1770430231880,-8525.6712497,0.00018386,2]
[404680721,1770430231889,-150.0,0.00018387,2]
[404680723,1770430231898,-303.10001605,0.000189,2]
[404680725,1770430231907,-300.0,0.00019203,2]
[404680727,1770430231917,-300.0,0.00019203,2]
[404680729,1770430231926,-300.0,0.00019203,2]
[404680731,1770430231935,-300.0,0.00019203,2]
[404680733,1770430231944,-300.0,0.00019203,2]
[404680734,1770430231953,-300.0,0.00019203,2]
[404680737,1770430231962,-300.0,0.00019203,2]
[404680738,1770430231971,-300.0,0.00019203,2]
[404680741,1770430231980,-300.0,0.00019203,2]
[404680742,1770430231989,-300.0,0.00019203,2]
[404680744,1770430231998,-300.0,0.00019203,2]
[404680746,1770430232007,-300.0,0.00019203,2]
[404680748,1770430232016,-300.0,0.00019203,2]
[404680749,1770430232026,-300.0,0.00019203,2]
[404680750,1770430232037,-300.0,0.00019203,2]
[404680751,1770430232047,-200.0,0.00020145,6]
[404680752,1770430232057,-177.0,0.00020387,2]
[404680753,1770430232067,-279.2341443,0.00020832,2]
[404680754,1770430232076,-1000.0,0.00021276,2]
[404680755,1770430232085,-526.738313,0.00021395,2]
[404680756,1770430232095,-362.81258981,0.00021426,2]
[404680757,1770430232104,-169.0,0.00022,2]
[404680758,1770430232113,-204.0,0.00022386,2]
[404680759,1770430232122,-169.0,0.00023014,7]
[404680760,1770430232131,-779.3645728,0.00023241,2]
[404680761,1770430232141,-10000.0,0.00023446,2]
[404680762,1770430232150,-5142.13206427,0.00023451,2]
[404680763,1770430232159,-600.0,0.00023508,10]
[404680764,1770430232170,-500.0,0.00023551,2]
[404680765,1770430232179,-200.54,0.00023941,2]
[404680766,1770430232188,-243.354,0.00023958,2]
[404680767,1770430232198,-177.536,0.00023958,2]
[404680768,1770430232207,-1756.84289766,0.00024,2]
[404680769,1770430232216,-172.0,0.00024164,7]
[404680770,1770430232225,-627.0343873,0.00024322,2]
[404680771,1770430232237,-4612.7377731,0.00024323,2]
[404680772,1770430232248,-872.67434346,0.00024326,2]
[404680773,1770430232257,-524.01083949,0.00024657,2]
[404680774,1770430232267,-525.20744665,0.00024657,2]
[404680775,1770430232277,-150.24754988,0.00024658,2]
[404680776,1770430232286,-200.0,0.00024658,2]
[404680777,1770430232296,-741.48751943,0.00025128,2]
[404680778,1770430232306,-1041.66666667,0.00025128,2]
[404680779,1770430232316,-22669.47658504,0.00025218,2]
[404680793,1770430237992,-8986.89156266,0.00025218,2]
[404680794,1770430238002,-13475.7915038,0.00025218,2]
[404680795,1770430238012,-3581.2,0.00025261,10]
[404680796,1770430238021,-3581.2,0.00025271,10]
[404680797,1770430238031,-3581.2,0.00025271,10]
[404680798,1770430238041,-500.0,0.00025279,2]
[404680799,1770430238051,-163.00379909,0.00025279,2]
[404680800,1770430238060,-265.97888882,0.0002528,2]
[404680801,1770430238069,-211.17010634,0.0002528,2]
[404680802,1770430238079,-267.03610247,0.0002528,2]
[404680803,1770430238088,-194.72792766,0.0002528,2]
[404680804,1770430238097,-201.93286099,0.0002528,2]
[404680805,1770430238107,-508.32044638,0.0002528,2]
[404680806,1770430238116,-209.40437684,0.0002528,2]
[404680807,1770430238126,-217.15233878,0.0002528,2]
[404680808,1770430238135,-225.18697532,0.0002528,2]
[404680809,1770430238145,-233.51889341,0.0002528,2]
[404680810,1770430238155,-242.15909246,0.0002528,2]
[404680811,1770430238164,-251.11897888,0.0002528,2]
[404680812,1770430238174,-260.4103811,0.0002528,2]
[404680813,1770430238184,-265.30867804,0.0002528,2]
[404680814,1770430238193,-270.0455652,0.0002528,2]
[404680815,1770430238203,-500.0,0.0002528,2]
[404680816,1770430238212,-258.12131247,0.0002528,2]
[404680817,1770430238222,-280.03725112,0.0002528,2]
[404680818,1770430238233,-500.0,0.0002528,2]
[404680819,1770430238245,-500.0,0.0002528,2]
[404680820,1770430238255,-290.39862941,0.0002528,2]
[404680821,1770430238264,-500.0,0.0002528,2]
[404680822,1770430238274,-500.0,0.0002528,2]
[404680823,1770430238286,-301.1433787,0.0002528,2]
[404680824,1770430238295,-500.0,0.0002528,2]
[404680825,1770430238306,-500.0,0.0002528,2]
[404680826,1770430238316,-500.0,0.0002528,2]
[404680827,1770430238326,-500.0,0.0002528,2]
[404680828,1770430238336,-259.08762871,0.0002528,2]
[404680829,1770430238345,-250.0,0.0002528,2]
[404680830,1770430238355,-500.0,0.0002528,2]
[404680831,1770430238364,-500.0,0.0002528,2]
[404680832,1770430238374,-250.0,0.0002528,2]
[404680833,1770430238384,-500.0,0.0002528,2]
[404680834,1770430238393,-500.0,0.0002528,2]
[404680835,1770430238403,-233.05824583,0.0002528,2]
[404680836,1770430238412,-500.0,0.0002528,2]
[404680837,1770430238422,-500.0,0.0002528,2]
[404680838,1770430238431,-500.0,0.0002528,2]
[404680839,1770430238441,-500.0,0.0002528,2]
[404680840,1770430238450,-500.0,0.0002528,2]
[404680841,1770430238460,-500.0,0.0002528,2]
[404680842,1770430238469,-500.0,0.0002528,2]
[404680843,1770430238479,-500.0,0.0002528,2]
[404680844,1770430238489,-500.0,0.0002528,2]
[404680845,1770430238499,-500.0,0.0002528,2]
[404680846,1770430238509,-500.0,0.0002528,2]
[404680847,1770430238518,-500.0,0.0002528,2]
[404680848,1770430238527,-500.0,0.0002528,2]
[404680849,1770430238537,-152.0,0.00025388,3]
[404680850,1770430238546,-152.0,0.00025388,3]
[404680851,1770430238556,-117.917641,0.00025388,3]
[404680852,1770430238569,-34.082359,0.00025388,3]
[404680853,1770430238579,-152.0,0.00025388,3]
[404680854,1770430238588,-152.0,0.00025388,3]
[404680855,1770430238597,-240.0,0.00025388,3]
[404680856,1770430238606,-5142.13206423,0.00025801,2]
[404680857,1770430238616,-720.0,0.00025859,10]
[404680858,1770430238626,-1041.66666667,0.00025949,10]
[404680859,1770430238635,-2000.0,0.00025968,2]
[404680860,1770430238645,-212.65238841,0.00026,15]
[404680861,1770430238654,-1010.42038581,0.0002615,2]
[404680862,1770430238663,-935.638767,0.00026355,2]
[404680863,1770430238673,-872.14286096,0.00027026,2]
[404680864,1770430238683,-168.0,0.00027085,2]
[404680865,1770430238692,-261.37920879,0.00027117,7]
[404681023,1770430244506,-238.62079121,0.00027117,7]
[404681024,1770430244516,-179.734038,0.00027273,30]
[404681025,1770430244525,-150.0,0.00027397,5]
[404681026,1770430244535,-150.0,0.00027397,5]
[404681027,1770430244543,-717.0,0.000274,3]
[404681028,1770430244553,-168.0,0.00027411,2]
[404681029,1770430244566,-146.64517079,0.00027464,2]
[404681038,1770430246089,-788.99359621,0.00027464,2]
[404681039,1770430246098,-661.36,0.0002749,3]
[404681040,1770430246107,-9471.23640379,0.000275,2]
[404681041,1770430246255,-528.76359621,0.000275,2]
[404681042,1770430246264,-881.93640379,0.000275,2]
[404681043,1770430265993,375.50922425,0.00013273,2]
[404681045,1770430326563,172.42092029,0.00013273,2]
[404681163,1770431438282,-300.0,0.00019999,2]
[404681165,1770431438291,-3273.79437159,0.0002,7]
[404681170,1770431438336,-1086.12686597,0.0002,7]
[404681218,1770431440465,-501.5968222,0.0002,7]
[404681445,1770431444605,-461.55266072,0.0002,7]
[404681446,1770431445360,-434.35922891,0.0002,7]
[404681447,1770431445374,-2099.0,0.0002,7]
[404681463,1770431446283,-2485.82572278,0.0002,7]
[404681464,1770431446290,-300.0,0.00020399,2]
[404681465,1770431446297,-300.0,0.00020399,2]
[404681466,1770431446304,-300.0,0.00020399,2]
[404681467,1770431446311,-300.0,0.00020399,2]
[404681468,1770431446319,-300.0,0.00020399,2]
[404681469,1770431446325,-300.0,0.00020399,2]
[404681470,1770431446331,-300.0,0.00020399,2]
[404681471,1770431446337,-300.0,0.00020399,2]
[404681472,1770431446344,-300.0,0.00020399,2]
[404681473,1770431446350,-300.0,0.00020399,2]
[404681474,1770431446357,-300.0,0.00020399,2]
[404681475,1770431446363,-300.0,0.00020399,2]
[404681476,1770431446370,-300.0,0.00020399,2]
[404681477,1770431446376,-300.0,0.00020399,2]
[404681478,1770431446383,-300.0,0.00020399,2]
[404681479,1770431446390,-8528.15227967,0.00020399,2]
[404681480,1770431446396,-169.0,0.00022,2]
[404681481,1770431446402,-500.0,0.00023995,2]
[404681482,1770431446408,-741.63626124,0.00024,7]
[404681483,1770431446415,-221.91401906,0.00025,15]
[404681484,1770431446421,-1006.49950984,0.00025,30]
[404681485,1770431446427,-216.34961323,0.0002528,2]
[404681486,1770431446433,-741.63626124,0.00025482,2]
[404681487,1770431446440,-1041.66666667,0.00025523,2]
[404681488,1770431446446,-8952.14728246,0.00026,2]
[404681489,1770431446456,-2468.0480089,0.00026,2]
[404681490,1770431446467,-382.69046709,0.00026,2]
[404681493,1770431569020,333.0,0.00030136,120]
[404681494,1770431585479,155.0,0.000285,60]
[404681495,1770431621749,222.0,0.00030136,120]
[404681500,1770432396549,1100.22,0.000301,120]
[404681585,1770432646008,-500.0,0.00023454,2]
[404681586,1770432646018,-1143.82866368,0.00023837,2]
[404681627,1770432665252,501.90173212,0.00013273,2]
[404681628,1770432666699,500.0,0.00013273,2]
[404681629,1770432666784,1004.28501373,0.00013821,2]
[404681630,1770432675071,632.68777407,0.00013273,2]
[404681631,1770432676454,500.77405752,0.00013699,2]
[404681632,1770432726739,500.0,0.00013699,2]
[404681633,1770432726775,501.85212557,0.00014247,2]
[404681635,1770432731813,500.0,0.00013699,2]
[404681636,1770432731873,324.50646595,0.00014247,2]
[404681646,1770432786828,500.0,0.00013273,2]
[404681647,1770432786884,670.88766267,0.00013821,2]
[404681655,1770432966650,504.56610071,0.00013273,2]
[404681656,1770432967025,502.81200903,0.00013273,2]
[404681657,1770432968492,515.71348566,0.00013699,2]
[404681703,1770433832521,-303.10001603,0.000189,2]
[404681705,1770433832531,-212.90391995,0.00019089,2]
[404681707,1770433832542,-89.67635937,0.00019089,2]
[404681709,1770433832551,-152.60997016,0.00023737,2]
[404681711,1770433832562,-300.0,0.00024313,10]
[404681713,1770433832571,-300.0,0.00024313,10]
[404681715,1770433832580,-8.32336381,0.00024313,10]
[404681884,1770433840870,-291.67663619,0.00024313,10]
[404681886,1770433840880,-16.66496381,0.00024313,10]
[404682076,1770433845106,-283.33503619,0.00024313,10]
[404682077,1770433845116,-300.0,0.00024313,10]
[404682078,1770433845126,-300.0,0.00024313,10]
[404682079,1770433845135,-300.0,0.00024313,10]
[404682080,1770433845144,-300.0,0.00024313,10]
[404682081,1770433845154,-300.0,0.00024313,10]
[404682082,1770433845163,-300.0,0.00024313,10]
[404682083,1770433845173,-300.0,0.00024313,10]
[404682084,1770433845182,-300.0,0.00024313,10]
[404682085,1770433845191,-300.0,0.00024313,10]
[404682086,1770433845201,-300.0,0.00024313,10]
[404682087,1770433845210,-300.0,0.00024313,10]
[404682088,1770433845220,-3074.29001051,0.00024313,2]
[404682089,1770433845950,-5402.82062612,0.00024313,2]
[404682090,1770433845960,-208.4578735,0.00024432,2]
[404682091,1770433845969,-3573.7943716,0.00024638,2]
[404682092,1770433845978,-10000.0,0.00025,2]
[404682093,1770433845988,-2968.72664601,0.00025,2]
[404682104,1770433846731,-4200.17022293,0.00025,2]
[404682105,1770433846842,-2831.10313106,0.00025,2]
[404682106,1770433846852,-3967.34494289,0.00025113,2]
[404682107,1770433846861,-393.8518882,0.00025213,2]
[404682130,1770434053837,450.0,0.000285,60]
[404682131,1770434179693,2400.0,0.000285,60]
[404682138,1770434895120,1089.4,0.000285,60]
[404682192,1770435037842,-300.0,0.00019999,2]
[404682194,1770435037851,-300.0,0.00019999,2]
[404682196,1770435037860,-300.0,0.00019999,2]
[404682198,1770435037869,-300.0,0.00019999,2]
[404682200,1770435037878,-1200.0,0.00019999,2]
[404682202,1770435037887,-21649.08459826,0.0002,7]
[404682204,1770435037896,-300.0,0.00020399,2]
[404682206,1770435037905,-300.0,0.00020399,2]
[404682208,1770435037914,-300.0,0.00020399,2]
[404682210,1770435037923,-300.0,0.00020399,2]
[404682212,1770435037932,-300.0,0.00020399,2]
[404682213,1770435037941,-300.0,0.00020399,2]
[404682215,1770435037950,-300.0,0.00020399,2]
[404682217,1770435037960,-300.0,0.00020399,2]
[404682219,1770435037969,-300.0,0.00020399,2]
[404682221,1770435037978,-300.0,0.00020399,2]
[404682223,1770435037987,-300.0,0.00020399,2]
[404682224,1770435037997,-300.0,0.00020399,2]
[404682226,1770435038007,-300.0,0.00020399,2]
[404682227,1770435038016,-300.0,0.00020399,2]
[404682228,1770435038025,-300.0,0.00020399,2]
[404682229,1770435038035,-600.0,0.00020806,2]
[404682230,1770435038044,-420.0,0.00021777,2]
[404682231,1770435038055,-252.0,0.00021777,2]
[404682232,1770435038064,-305.0,0.00021777,2]
[404682233,1770435038074,-420.0,0.00021777,2]
[404682234,1770435038084,-1680.0,0.00021881,2]
[404682235,1770435038093,-720.0,0.00022887,10]
[404682236,1770435038103,-371.0,0.00023712,2]
[404682237,1770435038112,-1199.0,0.00023941,2]
[404682238,1770435038121,-741.63626124,0.00024,7]
[404682239,1770435038131,-9367.95067464,0.00024,2]
[404682240,1770435038140,-3471.42682509,0.00024169,2]
[404682241,1770435038149,-500.0,0.00024272,2]
[404682242,1770435038158,-500.0,0.00024272,2]
[404682243,1770435038167,-224.56660024,0.00024273,2]
[404682262,1770435040046,-627.97595286,0.00024273,2]
[404682263,1770435040056,-11043.40404714,0.00024273,2]
[404682264,1770435040067,-2109.5162474,0.00024273,2]
[404682272,1770435045886,-4973.61335394,0.00024273,2]
[404682273,1770435046314,-520.1543375,0.00024273,2]
[404682279,1770435089082,2000.0,0.00030136,120]
[404682338,1770436237998,-397.2686417,0.0001763,2]
[404682339,1770436238008,-500.0,0.00019999,2]
[404682340,1770436238018,-9355.42924776,0.0002315,2]
[404682341,1770436238051,-1677.61615989,0.0002315,2]
[404682342,1770436238063,-5357.05643423,0.0002315,2]
[404682356,1770436244284,-8090.51447312,0.0002315,2]
[404682357,1770436244293,-1909.58142691,0.00024013,2]
[404682358,1770436246103,-286.596,0.00024013,2]
[404682359,1770436246115,-1337.23916287,0.00024013,2]
[404682360,1770436246124,-265.31114209,0.00024112,2]
[404682361,1770436246260,-234.68885791,0.00024112,2]
[404682362,1770436246270,-396.5371718,0.00024112,2]
[404682363,1770436246279,-500.0,0.00024112,2]
[404682364,1770436246288,-500.0,0.00024112,2]
[404682365,1770436246297,-500.0,0.00024112,2]
[404682366,1770436246306,-500.0,0.00024112,2]
[404682367,1770436246315,-500.0,0.00024112,2]
[404682368,1770436246324,-500.0,0.00024112,2]
[404682369,1770436246333,-500.0,0.00024112,2]
[404682370,1770436246342,-500.0,0.00024112,2]
[404682371,1770436246351,-500.0,0.00024112,2]
[404682372,1770436246360,-500.0,0.00024112,2]
[404682373,1770436246370,-422.53734939,0.00024112,2]
[404682374,1770436246379,-500.0,0.00024112,2]
[404682375,1770436246388,-500.0,0.00024112,2]
[404682376,1770436246397,-500.0,0.00024112,2]
[404682377,1770436246406,-21.34049139,0.00024112,2]
[404682378,1770436359332,3760.05897728,0.0003,120]
[404682386,1770436728272,50000.0,0.0003,120]
[404682387,1770436760034,30000.0,0.0003013,120]
[404682419,1770437432225,-204.55470514,0.00023059,2]
[404682420,1770437432235,-367.83027078,0.00023059,2]
[404682421,1770437432244,-336.72301227,0.00023059,2]
[404682422,1770437432256,-384.44147343,0.00023059,2]
[404682423,1770437432269,-439.904635,0.00023122,2]
[404682424,1770437432282,-3552.66995728,0.00024022,2]
[404682425,1770437432300,-151.0,0.00024113,2]
[404682426,1770437432309,-7171.73,0.00024113,10]
[404682427,1770437432320,-2770.37170287,0.00024113,10]
[404682428,1770437432342,-1153.34181208,0.00024113,10]
[404682429,1770437432354,-1022.9151468,0.00024113,10]
[404682437,1770437438226,-151.0,0.00024121,2]
[404682438,1770437438236,-151.0,0.00024121,2]
[404682439,1770437438245,-151.0,0.00024121,2]
[404682440,1770437438257,-151.0,0.00024121,2]
[404682441,1770437438267,-151.0,0.00024121,2]
[404682442,1770437438277,-151.0,0.00024121,2]
[404682443,1770437438287,-500.0,0.00024121,2]
[404682444,1770437438298,-500.0,0.00024121,2]
[404682445,1770437438307,-500.0,0.00024121,2]
[404682446,1770437438316,-369.59660821,0.00024121,2]
[404682447,1770437438327,-500.0,0.00024121,2]
[404682448,1770437438338,-500.0,0.00024121,2]
[404682449,1770437438347,-500.0,0.00024121,2]
[404682450,1770437438358,-500.0,0.00024121,2]
[404682451,1770437438367,-500.0,0.00024121,2]
[404682452,1770437438377,-500.0,0.00024121,2]
[404682453,1770437438390,-212.04474059,0.00024121,2]
[404682454,1770437438399,-500.0,0.00024121,2]
[404682455,1770437438409,-483.87444958,0.00024121,2]
[404682467,1770437440386,-16.12555042,0.00024121,2]
[404682470,1770437440396,-500.0,0.00024121,2]
[404682471,1770437440405,-66.30047151,0.00024121,2]
[404682479,1770437446270,-433.69952849,0.00024121,2]
[404682481,1770437446281,-68.26847127,0.00024121,2]
[404682483,1770437446292,-431.73152873,0.00024121,2]
[404682484,1770437446305,-500.0,0.00024121,2]
[404682485,1770437446316,-500.0,0.00024121,2]
[404682486,1770437446327,-500.0,0.00024121,2]
[404682487,1770437446340,-5066.90929004,0.00024121,2]
[404682488,1770437446351,-154.185307,0.00024122,2]
[404682489,1770437446363,-151.0,0.00024122,2]
[404682490,1770437446374,-464.10265937,0.00024122,2]
[404682491,1770437446385,-38373.25195069,0.00024123,2]
[404682492,1770437446398,-454.932072,0.00024123,2]
[404682500,1770438603231,-1000.0,0.0002,7]
[404682501,1770438604639,-1000.0,0.0002,7]
[404682502,1770438605083,-1000.0,0.0002,7]
[404682503,1770438605419,-1000.0,0.0002,7]
[404682504,1770438605759,-1000.0,0.0002,7]
[404682505,1770438606091,-1000.0,0.0002,7]
[404682506,1770438606443,-504.52360373,0.0002,7]
[404682507,1770438617084,-300.0,0.00021767,2]
[404682508,1770438617105,-300.0,0.00021767,2]
[404682509,1770438617126,-300.0,0.00021767,2]